bitfinex/quotes_BTCUSD_20250512
["timestamp","ask_amount","ask_price","bid_price","bid_amount"]
[1747076722081,1.54044295,102020.0,102010.0,0.0502463]
[1747076722513,1.07293966,102020.0,102010.0,0.0502463]
[1747076723383,1.54044295,102020.0,102010.0,0.0502463]
[1747076723811,1.82276295,102020.0,102010.0,0.0502463]
[1747076724410,2.02142955,102020.0,102010.0,0.0502463]
[1747076724601,1.94276295,102020.0,102010.0,0.0502463]
[1747076724806,1.92276295,102020.0,102010.0,0.0502463]
[1747076725174,1.64064536,102020.0,102010.0,0.0502463]
[1747076725603,2.11414865,102020.0,102010.0,0.0512463]
[1747076725817,2.11414865,102020.0,102010.0,0.0532463]
[1747076726022,2.10814865,102020.0,102010.0,0.0522463]
[1747076726221,1.61054536,102020.0,102010.0,0.0522463]
[1747076726464,1.61054536,102020.0,102010.0,0.0542463]
[1747076726465,1.71239966,102020.0,102010.0,0.0542463]
[1747076726641,2.17990295,102020.0,102010.0,0.0542463]
[1747076727221,2.05862913,102020.0,102010.0,0.0542463]
[1747076727477,1.71239966,102020.0,102010.0,0.0542463]
[1747076727625,2.09102913,102020.0,102010.0,0.0542463]
[1747076728239,2.40102913,102020.0,102010.0,0.0542463]
[1747076729577,2.7572586,102020.0,102010.0,0.0542463]
[1747076729793,2.41102913,102020.0,102010.0,0.0542463]
[1747076730749,2.06862913,102020.0,102010.0,0.0542463]
[1747076731285,2.10102913,102020.0,102010.0,0.0542463]
[1747076731491,1.53646913,102020.0,102010.0,0.0542463]
[1747076731687,2.10102913,102020.0,102010.0,0.0542463]
[1747076732434,2.10602913,102020.0,102010.0,0.0542463]
[1747076732640,0.21572807,101980.0,101970.0,0.22763611]
[1747076732846,0.22555545,101970.0,101960.0,0.64488545]
[1747076733086,0.22555593,101970.0,101960.0,0.6351529]
[1747076733331,0.02942223,101960.0,101950.0,0.62547385]
[1747076733579,0.00980699,101960.0,101950.0,0.62547385]
[1747076733809,0.01961255,101970.0,101960.0,0.23538486]
[1747076734034,0.31089922,101980.0,101970.0,0.22555536]
[1747076734258,0.53643237,101980.0,101970.0,0.22555536]
[1747076734477,0.53643237,101980.0,101970.0,0.21974932]
[1747076734478,0.51782271,101980.0,101970.0,0.21974932]
[1747076734694,0.31261675,101980.0,101970.0,0.23936206]
[1747076734910,0.50773363,101980.0,101970.0,0.21674932]
[1747076735116,0.50873363,101980.0,101970.0,0.21874932]
[1747076735328,0.001,101980.0,101970.0,0.62716251]
[1747076735536,0.02061053,101980.0,101970.0,0.28093304]
[1747076735743,0.02061053,101980.0,101970.0,0.66906187]
[1747076735976,0.03041608,101980.0,101970.0,0.65925574]
[1747076736207,0.21672817,101980.0,101970.0,0.24944923]
[1747076736423,0.21672817,101980.0,101970.0,0.25925555]
[1747076736632,0.21672817,101980.0,101970.0,0.25925564]
[1747076736842,0.08030818,101980.0,101970.0,0.26906197]
[1747076737064,0.1195299,101980.0,101970.0,0.26906197]
[1747076737270,0.04022114,101980.0,101970.0,0.30066197]
[1747076737497,0.05002688,101980.0,101970.0,0.30066197]
[1747076737708,0.22653353,101980.0,101970.0,0.24944942]
[1747076737931,0.22653353,101980.0,101970.0,0.25925584]
[1747076738154,0.21672817,101980.0,101970.0,0.19913611]
[1747076738390,0.27733597,101980.0,101970.0,0.003]
[1747076738608,0.37319027,101980.0,101970.0,0.003]
[1747076739270,0.38229901,101980.0,101970.0,0.003]
[1747076739479,0.41419901,101980.0,101970.0,0.003]
[1747076739684,0.88164814,101980.0,101970.0,0.003]
[1747076739917,1.51314814,101980.0,101970.0,0.003]
[1747076741341,1.04569901,101980.0,101970.0,0.003]
[1747076742256,0.41419901,101980.0,101970.0,0.003]
[1747076742497,1.19404566,101980.0,101970.0,0.003]
[1747076742719,1.22704566,101980.0,101970.0,0.003]
[1747076743046,1.25714566,101980.0,101970.0,0.003]
[1747076743408,1.22700566,101980.0,101970.0,0.003]
[1747076743631,1.32285996,101980.0,101970.0,0.003]
[1747076744499,1.04073996,101980.0,101970.0,0.003]
[1747076744743,1.28985996,101980.0,101970.0,0.003]
[1747076744971,1.28985996,101980.0,101970.0,0.20894291]
[1747076745227,0.02971936,101980.0,101970.0,0.26876216]
[1747076745462,0.23564189,101980.0,101970.0,0.29165603]
[1747076745702,0.21672798,101980.0,101970.0,0.24914961]
[1747076745924,0.19711688,101980.0,101970.0,0.0334]
[1747076746175,0.26556154,101980.0,101970.0,0.24914942]
[1747076746422,0.08835905,101980.0,101970.0,0.25895574]
[1747076746672,0.03952482,101980.0,101970.0,0.26876197]
[1747076746890,0.03952482,101980.0,101970.0,0.30106197]
[1747076747103,0.00886401,101980.0,101970.0,0.30106197]
[1747076747947,0.23439745,101980.0,101970.0,0.29125584]
[1747076748375,0.23439745,101980.0,101970.0,0.26876216]
[1747076748614,0.23439745,101980.0,101970.0,0.27856838]
[1747076748615,0.2774473,101980.0,101970.0,0.27856838]
[1747076748838,0.2774473,101980.0,101970.0,0.27856771]
[1747076749053,0.02847473,101980.0,101970.0,0.31086771]
[1747076749262,0.03828047,101980.0,101970.0,0.31086771]
[1747076749708,0.1961122,102000.0,101990.0,0.20590243]
[1747076749933,0.71314734,102000.0,101990.0,0.21570712]
[1747076750160,0.69354037,102000.0,101980.0,0.71537624]
[1747076750287,0.0196086,101990.0,101980.0,0.67922769]
[1747076750527,0.03921778,101990.0,101980.0,0.68903286]
[1747076750953,0.2451205,101990.0,101980.0,0.24792769]
[1747076751170,0.19611688,101980.0,101970.0,0.53613611]
[1747076751395,0.3016195,101990.0,101980.0,0.25833353]
[1747076751625,0.3016195,101990.0,101980.0,0.2986387]
[1747076751626,0.33103289,101990.0,101980.0,0.2986387]
[1747076751827,0.34083767,101990.0,101980.0,0.2986387]
[1747076752089,0.34183767,101990.0,101980.0,0.3056387]
[1747076752357,0.05987767,101990.0,101980.0,0.3056387]
[1747076752579,0.24617169,101990.0,101980.0,0.27513918]
[1747076752806,0.24617169,101990.0,101980.0,0.26533392]
[1747076753001,0.03046438,101990.0,101980.0,0.28494454]
[1747076753322,0.24617169,101990.0,101980.0,0.28494473]
[1747076753562,0.24617169,101990.0,101980.0,0.26533392]
[1747076753797,0.23728138,101990.0,101980.0,0.22572837]
[1747076754242,0.227512,101990.0,101980.0,0.24533918]
[1747076754469,0.227512,101990.0,101980.0,0.23553392]
[1747076754694,0.21770731,101990.0,101980.0,0.22572837]
[1747076755225,0.20790253,101990.0,101980.0,0.01]
[1747076755471,0.30375683,101990.0,101980.0,0.01]
[1747076755715,0.39151779,101990.0,101980.0,0.01]
[1747076756668,0.30375683,101990.0,101980.0,0.01]
[1747076756896,0.20790253,101990.0,101980.0,0.22572846]
[1747076757124,0.20790253,101990.0,101980.0,0.23553411]
[1747076757555,0.20790253,101990.0,101980.0,0.01]
[1747076757780,0.29395195,101990.0,101980.0,0.01]
[1747076758006,0.37114699,101990.0,101980.0,0.01]
[1747076758227,0.40284699,101990.0,101980.0,0.01]
[1747076758439,0.70284699,101990.0,101980.0,0.01]
[1747076759442,1.08749619,101990.0,101980.0,0.01]
[1747076759686,1.53852396,101990.0,101980.0,0.01]
[1747076759945,1.27898449,101990.0,101980.0,0.01]
[1747076760176,1.35765109,101990.0,101980.0,0.01]
[1747076760416,1.35765109,101990.0,101940.0,0.31445443]
[1747076760417,0.02942473,101950.0,101940.0,0.31445443]
[1747076760673,0.25992912,101950.0,101940.0,0.29532496]
[1747076761149,0.06375453,101950.0,101940.0,0.28732496]
[1747076761401,0.26973784,101950.0,101940.0,0.26770665]
[1747076761651,0.01961677,101950.0,101940.0,0.28732554]
[1747076761883,0.00980796,101950.0,101940.0,0.71639305]
[1747076762141,0.30061464,101960.0,101950.0,0.2255999]
[1747076762362,0.28168,101960.0,101950.0,0.61185715]
[1747076762590,0.29148709,101960.0,101950.0,0.29840795]
[1747076762812,0.36280627,101960.0,101950.0,0.29840795]
[1747076763057,0.31110175,101960.0,101950.0,0.29840795]
[1747076763316,0.30129428,101960.0,101950.0,0.29840795]
[1747076763568,0.00980507,101980.0,101970.0,0.22555536]
[1747076763828,0.3110129,101990.0,101980.0,0.21572769]
[1747076764061,0.61691524,101990.0,101980.0,0.23533908]
[1747076764291,0.68782017,101990.0,101980.0,0.22553372]
[1747076764528,0.03922556,101970.0,101960.0,0.59567777]
[1747076764757,0.21573034,101980.0,101970.0,0.24854942]
[1747076764950,0.31158257,101980.0,101970.0,0.21574942]
[1747076765179,0.34036973,101980.0,101970.0,0.23536225]
[1747076765399,0.34036973,101980.0,101970.0,0.24516867]
[1747076765638,0.61212389,101980.0,101970.0,0.2451681]
[1747076765855,0.62192954,101980.0,101970.0,0.2763681]
[1747076766099,0.63173538,101980.0,101970.0,0.26656197]
[1747076766355,0.62292954,101980.0,101970.0,0.26956197]
[1747076766583,0.62293002,101980.0,101970.0,0.27936819]
[1747076766807,0.61380226,101980.0,101970.0,0.26956158]
[1747076767038,0.00104869,101980.0,101970.0,0.66041691]
[1747076767267,0.00104869,101980.0,101970.0,0.81497914]
[1747076767521,0.00104869,101980.0,101970.0,1.15497914]
[1747076767768,0.00912747,101990.0,101980.0,0.25743324]
[1747076767987,0.23463909,101990.0,101980.0,0.24762807]
[1747076768154,0.30585884,101990.0,101980.0,0.24762807]
[1747076768399,0.29673137,101990.0,101980.0,0.25743362]
[1747076768604,0.29673137,101990.0,101980.0,0.24762817]
[1747076768774,0.29673137,101990.0,101980.0,0.23533898]
[1747076769229,0.30585884,101990.0,101980.0,0.23533898]
[1747076769446,0.30585884,101990.0,101980.0,0.20592262]
[1747076769447,0.29605444,101990.0,101980.0,0.20592262]
[1747076769697,0.29705444,101990.0,101980.0,0.21872827]
[1747076769925,0.29705444,101990.0,101980.0,0.20892272]
[1747076770162,0.29705444,101990.0,101980.0,0.21872827]
[1747076770405,0.29705444,101990.0,101980.0,0.22853363]
[1747076770607,0.29705444,101990.0,101980.0,0.21872827]
[1747076770826,0.29705444,101990.0,101980.0,0.22572837]
[1747076771043,0.28724946,101990.0,101980.0,0.20611688]
[1747076771263,0.01993187,101990.0,101980.0,0.58198244]
[1747076771491,0.01012747,101990.0,101980.0,0.64758244]
[1747076771732,0.03954027,101990.0,101980.0,0.64758244]
[1747076771989,0.03041387,101990.0,101980.0,0.24822262]
[1747076772251,0.2684011,101990.0,101980.0,0.01]
[1747076773025,0.23563947,101990.0,101980.0,0.23553353]
[1747076773251,0.01993196,101990.0,101980.0,0.21592272]
[1747076773505,0.22583449,101990.0,101980.0,0.23553391]
[1747076773748,0.02973665,101990.0,101980.0,0.27763908]
[1747076774249,0.01993167,101990.0,101980.0,0.27763908]
[1747076774474,0.03954056,101990.0,101980.0,0.65648828]
[1747076774724,0.10986343,101990.0,101980.0,0.62408828]
[1747076775210,0.30596108,101990.0,101980.0,0.27763908]
[1747076775866,0.01993167,101990.0,101980.0,0.27763908]
[1747076776117,0.01993167,101990.0,101980.0,0.62408828]
[1747076776338,0.03954085,101990.0,101980.0,0.62408828]
[1747076776583,0.24544328,101990.0,101980.0,0.27763908]
[1747076776806,0.02973616,101990.0,101980.0,0.27763908]
[1747076777452,0.28733235,101990.0,101980.0,0.27763908]
[1747076777588,0.29713713,101990.0,101980.0,0.27763908]
[1747076777819,0.02973616,101990.0,101980.0,0.27763908]
[1747076778054,0.01012747,101990.0,101980.0,1.10608343]
[1747076778276,0.01012747,101990.0,101980.0,1.41889616]
[1747076778722,0.01012747,101990.0,101980.0,1.44095423]
[1747076778977,0.001,101990.0,101980.0,1.78740343]
[1747076779206,0.001,101990.0,101980.0,1.88325773]
[1747076779429,0.001,101990.0,101980.0,1.89786017]
[1747076780096,0.001,101990.0,101980.0,2.11202717]
[1747076780320,0.001,101990.0,101980.0,2.04221717]
[1747076780554,0.001,101990.0,101980.0,2.08639597]
[1747076780790,0.001,101990.0,101980.0,1.83918467]
[1747076781011,0.02941012,102000.0,101990.0,0.575316]
[1747076781237,0.23529237,102000.0,101990.0,0.92176559]
[1747076781465,0.22548922,102000.0,101990.0,0.55570731]
[1747076781732,0.21570692,101990.0,101980.0,0.0581788]
[1747076781958,0.26475212,101990.0,101980.0,0.0531788]
[1747076782180,0.21570692,101990.0,101980.0,0.60635607]
[1747076782401,0.21570692,101990.0,101980.0,0.25990697]
[1747076782402,0.2255118,101990.0,101980.0,0.25990697]
[1747076782650,0.34316161,101990.0,101980.0,0.0441788]
[1747076782889,0.62400161,101990.0,101980.0,0.0441788]
[1747076783087,0.0196112,101980.0,101970.0,0.54594111]
[1747076783307,0.0196112,101980.0,101970.0,0.55574753]
[1747076783308,0.22553334,101980.0,101970.0,0.55574753]
[1747076783522,0.23533908,101980.0,101970.0,0.56555385]
[1747076783755,0.01961023,101980.0,101970.0,0.57535998]
[1747076783956,0.02941568,101980.0,101970.0,0.92180918]
[1747076784192,0.01961014,101980.0,101970.0,0.92180918]
[1747076784413,0.0490266,101980.0,101970.0,0.54594111]
[1747076784642,0.02941887,101970.0,101960.0,0.60519604]
[1747076784860,0.22555574,101970.0,101960.0,0.05972149]
[1747076785072,0.21574932,101970.0,101960.0,0.28529917]
[1747076785511,0.21574932,101970.0,101960.0,0.29510636]
[1747076785720,0.27180547,101970.0,101960.0,0.24087314]
[1747076785935,0.27180547,101970.0,101960.0,0.25068023]
[1747076786174,0.24674413,101980.0,101960.0,0.25768023]
[1747076786349,0.19611688,101980.0,101970.0,0.21574923]
[1747076786608,0.22771688,101980.0,101970.0,0.20594281]
[1747076787044,0.21574885,101970.0,101960.0,0.5599002]
[1747076787257,0.22555574,101970.0,101960.0,0.22325886]
[1747076787466,0.01961283,101970.0,101960.0,0.24787333]
[1747076787706,0.22555555,101970.0,101960.0,0.01248827]
[1747076787923,0.53754272,101970.0,101960.0,0.00748827]
[1747076788143,0.63339702,101970.0,101960.0,0.05165718]
[1747076788354,0.63339702,101970.0,101960.0,0.04965718]
[1747076788568,0.63339702,101970.0,101960.0,0.25562029]
[1747076788779,0.63339702,101970.0,101960.0,0.26042796]
[1747076788996,0.72925132,101970.0,101960.0,0.26342796]
[1747076789205,0.71944471,101970.0,101960.0,0.25962029]
[1747076789448,0.71944471,101970.0,101960.0,0.05365718]
[1747076789653,0.71944471,101970.0,101960.0,0.25962029]
[1747076790074,0.71944471,101970.0,101960.0,0.05365718]
[1747076790297,0.71944471,101970.0,101960.0,0.24981253]
[1747076790541,0.60179721,101970.0,101960.0,0.26942776]
[1747076790754,0.61160372,101970.0,101960.0,0.26942776]
[1747076790965,0.61160372,101970.0,101960.0,0.00948827]
[1747076791178,0.61160372,101970.0,101960.0,0.21545129]
[1747076791390,0.51574942,101970.0,101960.0,0.23506595]
[1747076791625,0.51574942,101970.0,101960.0,0.21545129]
[1747076792363,0.61160372,101970.0,101960.0,0.00948827]
[1747076792834,0.64440372,101970.0,101960.0,0.21545138]
[1747076793279,0.64440372,101970.0,101960.0,0.20564362]
[1747076793477,0.64440372,101970.0,101960.0,0.21545129]
[1747076793898,0.63459721,101970.0,101960.0,0.00948827]
[1747076794120,0.63459721,101970.0,101960.0,0.20564362]
[1747076794617,0.62479041,101970.0,101960.0,0.00948827]
[1747076794858,0.72064471,101970.0,101960.0,0.00948827]
[1747076795307,1.09959391,101970.0,101960.0,0.00948827]
[1747076795772,1.19959391,101970.0,101960.0,0.00948827]
[1747076795997,1.54604311,101970.0,101960.0,0.00948827]
[1747076796206,1.20459391,101970.0,101960.0,0.00648827]
[1747076796416,1.20459391,101970.0,101960.0,0.00848827]
[1747076796654,1.20459391,101970.0,101960.0,0.00248827]
[1747076797084,1.20459391,101970.0,101960.0,0.00048827]
[1747076797298,1.21759391,101970.0,101960.0,0.00148827]
[1747076798242,1.27404311,101970.0,101960.0,0.00148827]
[1747076798693,1.28404311,101970.0,101960.0,0.00148827]
[1747076799602,0.22564387,101930.0,101920.0,0.21585328]
[1747076799818,0.38621718,101930.0,101920.0,0.56566451]
[1747076800031,0.31936135,101930.0,101920.0,0.58528667]
[1747076800245,0.51557443,101930.0,101920.0,0.58528667]
[1747076800674,0.51657443,101930.0,101920.0,0.5924623]
[1747076800895,0.51657443,101930.0,101920.0,0.58279753]
[1747076801125,0.61459803,101930.0,101920.0,0.00714636]
[1747076801348,1.35690153,101930.0,101920.0,0.00714636]
[1747076801564,1.38970153,101930.0,101920.0,0.00714636]
[1747076801799,1.39470153,101930.0,101920.0,0.00714636]
[1747076802006,1.04825233,101930.0,101920.0,0.01614636]
[1747076802286,1.39370153,101930.0,101920.0,0.00914636]
[1747076802501,1.39470153,101930.0,101920.0,0.02114636]
[1747076802718,1.04825233,101930.0,101920.0,0.02114636]
[1747076803171,1.03533233,101930.0,101920.0,0.02114636]
[1747076803390,1.17802738,101930.0,101920.0,0.00514636]
[1747076803566,1.17802738,101930.0,101920.0,0.00914636]
[1747076803804,1.17702738,101930.0,101920.0,0.00414636]
[1747076803986,1.21022738,101930.0,101920.0,0.00414636]
[1747076804223,1.30608168,101930.0,101920.0,0.00514636]
[1747076805520,1.08543088,101930.0,101920.0,0.00514636]
[1747076805740,1.38543088,101930.0,101920.0,0.00514636]
[1747076806413,1.73043088,101930.0,101920.0,0.00514636]
[1747076806635,1.83043088,101930.0,101920.0,0.00514636]
[1747076807324,1.83043088,101930.0,101920.0,0.00414636]
[1747076807549,1.84493382,101930.0,101920.0,0.00414636]
[1747076807787,1.84493382,101930.0,101920.0,0.00014636]
[1747076808249,1.85393382,101930.0,101920.0,0.00214636]
[1747076808685,1.87393382,101930.0,101920.0,0.00414636]
[1747076809125,1.59397382,101930.0,101920.0,0.00414636]
[1747076809350,2.41596738,101930.0,101920.0,0.00414636]
[1747076809763,2.76241658,101930.0,101920.0,0.00414636]
[1747076810116,2.41596738,101930.0,101920.0,0.00414636]
[1747076810977,1.18322738,101930.0,101920.0,0.00414636]
[1747076811189,1.83888168,101930.0,101920.0,0.00414636]
[1747076811408,2.18533088,101930.0,101920.0,0.00414636]
[1747076811838,2.48533088,101930.0,101920.0,0.00414636]
[1747076812053,2.13888168,101930.0,101920.0,0.00414636]
[1747076812293,1.84588168,101930.0,101920.0,0.00414636]
[1747076812506,1.45002738,101930.0,101920.0,0.00414636]
[1747076812721,1.72954738,101930.0,101920.0,0.00414636]
[1747076815561,1.69886699,101930.0,101920.0,0.00414636]
[1747076816214,2.27701619,101930.0,101920.0,0.00414636]
[1747076816629,1.89886699,101930.0,101920.0,0.00414636]
[1747076816843,1.99472129,101930.0,101920.0,0.00414636]
[1747076817072,1.88986699,101930.0,101920.0,0.00214636]
[1747076817424,1.88986699,101930.0,101920.0,0.00914636]
[1747076818038,1.86986699,101930.0,101920.0,0.00714636]
[1747076818258,1.56986699,101930.0,101920.0,0.00714636]
[1747076818495,1.56986699,101930.0,101920.0,0.00814636]
[1747076822065,2.31851619,101930.0,101920.0,0.00814636]
[1747076822255,2.12851619,101930.0,101920.0,0.00814636]
[1747076822423,2.14305704,101930.0,101920.0,0.00814636]
[1747076822632,2.82625704,101930.0,101920.0,0.00814636]
[1747076823007,2.82625704,101930.0,101920.0,0.00014636]
[1747076823207,2.92211134,101930.0,101920.0,0.00014636]
[1747076823437,2.93011134,101930.0,101920.0,0.00214636]
[1747076823657,2.34059134,101930.0,101920.0,0.00214636]
[1747076823861,2.53868129,101930.0,101920.0,0.00214636]
[1747076824083,2.80380685,101930.0,101920.0,0.00214636]
[1747076824298,2.82180685,101930.0,101920.0,0.00414636]
[1747076825404,2.86276685,101930.0,101920.0,0.00276252]
[1747076825646,1.39506699,101930.0,101920.0,0.00276252]
[1747076825861,0.97110699,101930.0,101920.0,0.00276252]
[1747076826089,1.71341049,101930.0,101920.0,0.00276252]
[1747076826296,1.47561049,101930.0,101920.0,0.00276252]
[1747076826517,1.18561049,101930.0,101920.0,0.00276252]
[1747076826930,1.52561049,101930.0,101920.0,0.00276252]
[1747076827143,0.86914129,101930.0,101920.0,0.00276252]
[1747076827387,1.01098699,101930.0,101920.0,0.00276252]
[1747076827605,1.39003619,101930.0,101920.0,0.00276252]
[1747076828477,1.69003619,101930.0,101920.0,0.00276252]
[1747076829152,1.34358699,101930.0,101920.0,0.00276252]
[1747076829380,1.31098699,101930.0,101920.0,0.00276252]
[1747076829625,1.40684129,101930.0,101920.0,0.00276252]
[1747076829868,1.06684129,101930.0,101920.0,0.00276252]
[1747076830113,0.99238699,101930.0,101920.0,0.00276252]
[1747076830343,1.27078699,101930.0,101920.0,0.00276252]
[1747076833625,1.61723619,101930.0,101920.0,0.00276252]
[1747076833846,1.27078699,101930.0,101920.0,0.00276252]
[1747076834080,1.36664129,101930.0,101920.0,0.00276252]
[1747076834783,0.99038699,101930.0,101920.0,0.34921172]
[1747076835031,0.98538699,101930.0,101920.0,0.26079485]
[1747076835254,0.29934295,101930.0,101920.0,0.61705537]
[1747076835466,0.04562005,101930.0,101920.0,0.98648915]
[1747076835690,0.24364349,101930.0,101920.0,0.97591569]
[1747076835925,0.018,101930.0,101920.0,0.98572663]
[1747076836199,0.025,101930.0,101920.0,0.98572663]
[1747076836420,0.03480988,101930.0,101920.0,0.98572663]
[1747076836667,0.007,101930.0,101920.0,1.19797608]
[1747076836899,0.007,101930.0,101920.0,1.22827144]
[1747076837122,0.021,101930.0,101920.0,1.19897608]
[1747076837577,0.007,101930.0,101920.0,1.24205192]
[1747076837804,0.007,101930.0,101920.0,1.24405192]
[1747076838021,0.007,101930.0,101920.0,1.14819762]
[1747076838669,0.50356311,101950.0,101940.0,0.07430959]
[1747076838878,0.60356311,101950.0,101940.0,0.62676211]
[1747076839086,0.59375448,101950.0,101940.0,0.63657141]
[1747076839296,0.60356301,101950.0,101940.0,0.63657132]
[1747076839505,0.60336254,101950.0,101940.0,0.97657132]
[1747076839723,0.60336254,101950.0,101940.0,0.7509492]
[1747076839724,0.60336311,101950.0,101940.0,0.7509492]
[1747076839931,0.60336311,101950.0,101940.0,0.7519492]
[1747076840167,0.60755487,101950.0,101940.0,0.76175889]
[1747076840384,0.61455487,101950.0,101940.0,0.96776221]
[1747076840594,0.61455487,101950.0,101940.0,0.98514611]
[1747076840985,0.62436359,101950.0,101940.0,0.65831571]
[1747076841266,0.62436359,101950.0,101940.0,0.9873812]
[1747076841869,0.81607219,101950.0,101940.0,0.0329]
[1747076842081,0.80626375,101950.0,101940.0,0.001]
[1747076842528,1.10626375,101950.0,101940.0,0.001]
[1747076842744,1.75271295,101950.0,101940.0,0.04507584]
[1747076842955,1.78311295,101950.0,101940.0,0.04507584]
[1747076843168,1.12850375,101950.0,101940.0,0.04507584]
[1747076843375,1.28844945,101950.0,101940.0,0.04507584]
[1747076844075,0.72284092,101950.0,101940.0,0.04507584]
[1747076844289,1.00024092,101950.0,101940.0,0.04507584]
[1747076844500,1.00024092,101950.0,101940.0,0.07517584]
[1747076845500,1.00016092,101950.0,101940.0,0.07517584]
[1747076845935,0.72284092,101950.0,101940.0,0.0311]
[1747076846162,0.92388312,101950.0,101940.0,0.62416221]
[1747076846876,0.92388312,101950.0,101940.0,0.63397161]
[1747076847292,0.92388312,101950.0,101940.0,0.62416221]
[1747076848433,0.40808786,101950.0,101940.0,0.64378052]
[1747076848676,0.121,101950.0,101940.0,0.98378052]
[1747076848880,0.13080786,101950.0,101940.0,1.42975089]
[1747076849124,0.021,101950.0,101940.0,1.08330169]
[1747076849337,0.021,101950.0,101940.0,0.99832137]
[1747076849765,0.007,101950.0,101940.0,0.99732137]
[1747076849987,0.48300273,101960.0,101950.0,0.61929156]
[1747076850194,0.60261739,101960.0,101950.0,0.62574086]
[1747076850398,0.61242496,101960.0,101950.0,0.62574086]
[1747076850601,0.61242496,101960.0,101950.0,0.6355492]
[1747076851210,0.60261739,101960.0,101950.0,0.6355492]
[1747076851422,0.60261739,101960.0,101950.0,0.62574086]
[1747076852039,0.61242506,101960.0,101950.0,0.62574086]
[1747076852238,0.60880992,101960.0,101950.0,0.62674086]
[1747076852456,0.62842477,101960.0,101950.0,0.62674086]
[1747076852674,0.62842477,101960.0,101950.0,0.6365492]
[1747076853098,0.62842477,101960.0,101950.0,0.62674086]
[1747076853307,0.41265399,101960.0,101950.0,0.74221155]
[1747076853517,0.33176944,101960.0,101950.0,0.74221155]
[1747076853711,0.34157691,101960.0,101950.0,0.74221165]
[1747076854016,0.33176944,101960.0,101950.0,0.6561654]
[1747076854215,0.13561399,101960.0,101950.0,0.6561654]
[1747076854386,0.1258069,101960.0,101950.0,0.6561654]
[1747076854595,0.34157682,101960.0,101950.0,0.64635735]
[1747076855033,0.35138439,101960.0,101950.0,0.64635744]
[1747076855186,0.34157682,101960.0,101950.0,0.65616559]
[1747076855388,0.34157682,101960.0,101950.0,1.04635744]
[1747076855589,0.34157682,101960.0,101950.0,1.05616559]
[1747076855833,0.34157682,101960.0,101950.0,1.05616501]
[1747076856035,0.35138439,101960.0,101950.0,1.03654881]
[1747076856278,0.34157682,101960.0,101950.0,1.39616501]
[1747076856516,0.34157682,101960.0,101950.0,1.38635696]
[1747076856761,0.116,101960.0,101950.0,1.85300936]
[1747076856977,0.016,101960.0,101950.0,2.65818571]
[1747076857176,0.016,101960.0,101950.0,1.53681351]
[1747076858084,0.016,101960.0,101950.0,1.50656016]
[1747076858307,0.22553368,101980.0,101970.0,0.62645536]
[1747076858308,0.01961033,101980.0,101970.0,0.62645536]
[1747076858516,0.00980507,101980.0,101970.0,0.97290456]
[1747076858723,0.20592195,101980.0,101970.0,0.97290456]
[1747076858929,0.21572712,101980.0,101970.0,0.97290456]
[1747076859163,0.22553248,101980.0,101970.0,0.97290456]
[1747076859579,0.22602012,101980.0,101970.0,0.98090456]
[1747076859989,0.22602012,101980.0,101970.0,0.63445536]
[1747076860196,0.21621476,101980.0,101970.0,0.98090456]
[1747076860429,0.22602002,101980.0,101970.0,0.98090456]
[1747076860629,0.22602002,101980.0,101970.0,0.99888192]
[1747076860838,0.02009788,101980.0,101970.0,0.99888192]
[1747076861457,0.02009788,101980.0,101970.0,1.09473622]
[1747076861879,0.02009788,101980.0,101970.0,0.99888192]
[1747076862332,0.02009788,101980.0,101970.0,1.34533112]
[1747076862715,0.01029271,101980.0,101970.0,1.34533112]
[1747076862969,0.02009797,101980.0,101970.0,1.34533112]
[1747076863182,0.02009797,101980.0,101970.0,0.99888192]
[1747076863391,0.00048764,101980.0,101970.0,0.99888192]
[1747076863604,0.01029261,101980.0,101970.0,0.99888192]
[1747076864422,0.00048764,101980.0,101970.0,1.45572627]
[1747076865304,0.23582557,101980.0,101970.0,0.42687736]
[1747076865514,0.23582557,101980.0,101970.0,0.95887598]
[1747076865731,0.264224,101980.0,101970.0,0.348]
[1747076866145,0.264224,101980.0,101970.0,0.008]
[1747076866146,0.3600783,101980.0,101970.0,0.008]
[1747076866367,0.21574913,101970.0,101960.0,0.34]
[1747076866589,0.21574942,101970.0,101960.0,0.3674661]
[1747076866824,0.21574942,101970.0,101960.0,0.01765834]
[1747076867036,0.21574942,101970.0,101960.0,0.36746601]
[1747076867213,0.31095652,101970.0,101960.0,0.34]
[1747076867360,0.21574942,101970.0,101960.0,0.55577068]
[1747076867561,0.21574942,101970.0,101960.0,0.34]
[1747076867821,0.21574942,101970.0,101960.0,0.34980776]
[1747076868033,0.20594262,101970.0,101960.0,0.54596311]
[1747076868227,0.22555469,101970.0,101960.0,0.93164144]
[1747076868462,0.2353613,101970.0,101960.0,0.92283435]
[1747076868607,0.2353613,101970.0,101960.0,0.92283454]
[1747076868974,0.24961308,101970.0,101960.0,0.90321988]
[1747076869126,0.24961308,101970.0,101960.0,0.92283473]
[1747076869346,0.24961308,101970.0,101960.0,0.93183473]
[1747076870199,0.24961308,101970.0,101960.0,0.94931163]
[1747076870493,0.02405714,101970.0,101960.0,0.95911815]
[1747076870714,0.28957111,101970.0,101960.0,1.02341815]
[1747076871164,0.28957111,101970.0,101960.0,1.42341815]
[1747076871627,0.28957111,101970.0,101960.0,1.40594125]
[1747076873400,0.29937743,101970.0,101960.0,1.40594125]
[1747076873580,0.28957111,101970.0,101960.0,1.37314125]
[1747076873780,0.49551344,101970.0,101960.0,1.36333416]
[1747076874014,0.30918365,101970.0,101960.0,1.39054308]
[1747076874224,0.34787092,101970.0,101960.0,1.39054308]
[1747076874412,0.35767724,101970.0,101960.0,1.39054308]
[1747076874622,0.50532053,101970.0,101960.0,0.56355718]
[1747076874833,0.50532053,101970.0,101960.0,0.91000638]
[1747076874988,0.51512714,101970.0,101960.0,0.92962143]
[1747076876046,0.50532082,101970.0,101960.0,0.03720959]
[1747076876256,0.50532082,101970.0,101960.0,0.24317251]
[1747076876449,0.50532082,101970.0,101960.0,0.60923656]
[1747076876655,0.50532082,101970.0,101960.0,0.59942918]
[1747076877337,0.49551402,101970.0,101960.0,0.59942918]
[1747076877545,0.50532072,101970.0,101960.0,0.59942918]
[1747076877752,0.50532072,101970.0,101960.0,0.57981405]
[1747076877935,0.60117502,101970.0,101960.0,0.59942909]
[1747076878281,0.60117502,101970.0,101960.0,0.57981405]
[1747076878462,0.67741639,101970.0,101960.0,0.01]
[1747076879520,0.70771639,101970.0,101960.0,0.01]
[1747076879948,1.30771639,101970.0,101960.0,0.01]
[1747076880161,1.33941639,101970.0,101960.0,0.01]
[1747076882522,1.21186209,101970.0,101960.0,0.01]
[1747076884841,1.21186209,101970.0,101960.0,0.00781787]
[1747076885226,1.18156209,101970.0,101960.0,0.00781787]
[1747076887044,1.21136209,101970.0,101960.0,0.00781787]
[1747076888715,1.18156209,101970.0,101960.0,0.00781787]
[1747076888927,0.31604851,101970.0,101960.0,0.35426707]
[1747076889144,0.58984851,101970.0,101960.0,0.35426707]